[Event "Titled Tuesday Blitz May 23 Late 2023"]
[White "Sychev, Klementy"]
[Black "Van Dael, Siem"]
[WhiteFideId "4114060"]
[BlackFideId "1049771"]
[WhiteElo "2583"]
[BlackElo "2336"]
[Result "1-0"]
[Round "04"]
[TimeControl "180+2"]
[Date "2023.05.23"]
[WhiteClock "0:00:03"]
[BlackClock "0:00:04"]

1. e4 {[%clk 0:03:00]}  d5 {[%clk 0:02:55]} 2. exd5 {[%clk 0:03:01]}  Nf6 {[%clk 0:02:55]} 3. Nf3 {[%clk 0:02:58]}  Bg4 {[%clk 0:02:55]} 4. Bb5+ {[%clk 0:02:52]}  Nbd7 {[%clk 0:02:52]} 5. h3 {[%clk 0:02:42]}  a6 {[%clk 0:02:52]} 6. Be2 {[%clk 0:02:30]}  Bh5 {[%clk 0:02:38]} 7. c4 {[%clk 0:02:27]}  e6 {[%clk 0:02:35]} 8. dxe6 {[%clk 0:02:19]}  fxe6 {[%clk 0:02:36]} 9. Ng5 {[%clk 0:02:07]}  Bf7 {[%clk 0:01:45]} 10. Nxf7 {[%clk 0:02:00]}  Kxf7 {[%clk 0:01:46]} 11. O-O {[%clk 0:01:57]}  c5 {[%clk 0:01:44]} 12. Bf3 {[%clk 0:01:28]}  Ne5 {[%clk 0:01:06]} 13. Bxb7 {[%clk 0:01:27]}  Ra7 {[%clk 0:01:06]} 14. Bf3 {[%clk 0:01:23]}  Rd7 {[%clk 0:00:51]} 15. Qe2 {[%clk 0:01:10]}  Nd3 {[%clk 0:00:40]} 16. Nc3 {[%clk 0:00:56]}  Rd4 {[%clk 0:00:23]} 17. Qe3 {[%clk 0:00:36]}  Bd6 {[%clk 0:00:20]} 18. Ne2 {[%clk 0:00:36]}  Bf4 {[%clk 0:00:08]} 19. Nxf4 {[%clk 0:00:35]}  Nxf4 {[%clk 0:00:08]} 20. b4 {[%clk 0:00:32]}  cxb4 {[%clk 0:00:05]} 21. Bb2 {[%clk 0:00:32]}  Rxc4 {[%clk 0:00:04]} 22. Rac1 {[%clk 0:00:31]}  Rxc1 {[%clk 0:00:03]} 23. Rxc1 {[%clk 0:00:31]}  Nd3 {[%clk 0:00:03]} 24. Bxf6 {[%clk 0:00:28]}  gxf6 {[%clk 0:00:03]} 25. Bh5+ {[%clk 0:00:24]}  Kg7 {[%clk 0:00:03]} 26. Qg3+ {[%clk 0:00:24]}  Kh6 {[%clk 0:00:02]} 27. Rc4 {[%clk 0:00:16]}  Rg8 {[%clk 0:00:02]} 28. Qh4 {[%clk 0:00:13]}  Kg7 {[%clk 0:00:02]} 29. Rg4+ {[%clk 0:00:12]}  Kh8 {[%clk 0:00:03]} 30. Rd4 {[%clk 0:00:03]}  Qb6 {[%clk 0:00:01]} 31. Qxf6+ {[%clk 0:00:03]}  Rg7 {[%clk 0:00:01]} 32. Rd8+ {[%clk 0:00:03]}  Qxd8 {[%clk 0:00:02]} 33. Qxd8+ {[%clk 0:00:03]}  Rg8 {[%clk 0:00:03]} 34. Qxd3 {[%clk 0:00:03]}  Rg7 {[%clk 0:00:04]} 1-0


[Site "https://www.chess.com"]

[Event "Titled Tuesday Blitz May 23 Late 2023"]
[White "Naroditsky, Daniel"]
[Black "Hasangatin, Ramil"]
[WhiteFideId "2026961"]
[BlackFideId "4122160"]
[WhiteElo "2633"]
[BlackElo "2279"]
[Result "1-0"]
[Round "04"]
[TimeControl "180+2"]
[Date "2023.05.23"]
[WhiteClock "0:00:15"]
[BlackClock "0:00:00"]

1. e4 {[%clk 0:03:00]}  d5 {[%clk 0:03:00]} 2. exd5 {[%clk 0:03:01]}  Qxd5 {[%clk 0:03:01]} 3. Nc3 {[%clk 0:03:00]}  Qd6 {[%clk 0:03:01]} 4. d4 {[%clk 0:02:57]}  Nf6 {[%clk 0:03:01]} 5. Nf3 {[%clk 0:02:56]}  c6 {[%clk 0:03:01]} 6. Be3 {[%clk 0:02:46]}  Bg4 {[%clk 0:02:59]} 7. h3 {[%clk 0:02:46]}  Bh5 {[%clk 0:02:59]} 8. g4 {[%clk 0:02:45]}  Bg6 {[%clk 0:03:00]} 9. Ne5 {[%clk 0:02:46]}  Nbd7 {[%clk 0:03:00]} 10. f4 {[%clk 0:02:44]}  e6 {[%clk 0:02:58]} 11. Bg2 {[%clk 0:02:36]}  Qb4 {[%clk 0:02:51]} 12. Nxg6 {[%clk 0:02:25]}  hxg6 {[%clk 0:02:50]} 13. Qd2 {[%clk 0:02:24]}  Nd5 {[%clk 0:02:38]} 14. Nxd5 {[%clk 0:02:20]}  Qxd2+ {[%clk 0:02:39]} 15. Kxd2 {[%clk 0:02:17]}  exd5 {[%clk 0:02:20]} 16. g5 {[%clk 0:02:07]}  Nb6 {[%clk 0:02:00]} 17. b3 {[%clk 0:02:05]}  Nc8 {[%clk 0:01:58]} 18. c4 {[%clk 0:02:03]}  dxc4 {[%clk 0:01:56]} 19. bxc4 {[%clk 0:02:04]}  Nd6 {[%clk 0:01:56]} 20. Kd3 {[%clk 0:02:03]}  Nf5 {[%clk 0:01:50]} 21. Bf2 {[%clk 0:02:03]}  O-O-O {[%clk 0:01:49]} 22. d5 {[%clk 0:02:04]}  Bd6 {[%clk 0:01:41]} 23. Bxa7 {[%clk 0:01:47]}  Bxf4 {[%clk 0:01:41]} 24. Rab1 {[%clk 0:01:30]}  Rhe8 {[%clk 0:01:25]} 25. Rhe1 {[%clk 0:01:23]}  cxd5 {[%clk 0:01:04]} 26. cxd5 {[%clk 0:01:20]}  Bxg5 {[%clk 0:00:39]} 27. Bb6 {[%clk 0:01:10]}  Rxe1 {[%clk 0:00:33]} 28. Rxe1 {[%clk 0:01:11]}  Rh8 {[%clk 0:00:29]} 29. Re2 {[%clk 0:01:07]}  Kd7 {[%clk 0:00:27]} 30. Rb2 {[%clk 0:01:02]}  Nd6 {[%clk 0:00:23]} 31. Bc5 {[%clk 0:00:52]}  Bf6 {[%clk 0:00:23]} 32. Rb6 {[%clk 0:00:51]}  Be5 {[%clk 0:00:20]} 33. a4 {[%clk 0:00:40]}  Ra8 {[%clk 0:00:17]} 34. Bxd6 {[%clk 0:00:34]}  Bxd6 {[%clk 0:00:18]} 35. Rxb7+ {[%clk 0:00:35]}  Ke8 {[%clk 0:00:18]} 36. Rb6 {[%clk 0:00:34]}  Ke7 {[%clk 0:00:18]} 37. Rb7+ {[%clk 0:00:34]}  Kf6 {[%clk 0:00:18]} 38. Rd7 {[%clk 0:00:32]}  Ke5 {[%clk 0:00:15]} 39. Rxf7 {[%clk 0:00:29]}  Rxa4 {[%clk 0:00:15]} 40. Rxg7 {[%clk 0:00:30]}  Ra3+ {[%clk 0:00:14]} 41. Ke2 {[%clk 0:00:26]}  Rg3 {[%clk 0:00:11]} 42. Kf2 {[%clk 0:00:25]}  Rg5 {[%clk 0:00:10]} 43. Bf3 {[%clk 0:00:23]}  Bc5+ {[%clk 0:00:09]} 44. Ke2 {[%clk 0:00:23]}  Kd4 {[%clk 0:00:05]} 45. h4 {[%clk 0:00:21]}  Re5+ {[%clk 0:00:06]} 46. Kf1 {[%clk 0:00:21]}  Ke3 {[%clk 0:00:06]} 47. Kg2 {[%clk 0:00:21]}  Rf5 {[%clk 0:00:05]} 48. Rxg6 {[%clk 0:00:21]}  Bd4 {[%clk 0:00:02]} 49. Re6+ {[%clk 0:00:21]}  Kd2 {[%clk 0:00:03]} 50. h5 {[%clk 0:00:21]}  Re5 {[%clk 0:00:02]} 51. Rxe5 {[%clk 0:00:12]}  Bxe5 {[%clk 0:00:03]} 52. h6 {[%clk 0:00:13]}  Ke3 {[%clk 0:00:03]} 53. h7 {[%clk 0:00:14]}  Kd4 {[%clk 0:00:03]} 54. d6 {[%clk 0:00:14]}  Kc5 {[%clk 0:00:02]} 55. d7 {[%clk 0:00:15]}  Bf6 {[%clk 0:00:00]} 56. d8=Q {[%clk 0:00:15]} 1-0


[Site "https://www.chess.com"]

[Event "Titled Tuesday Blitz May 23 Late 2023"]
[White "Svane, Frederik"]
[Black "Papasimakopoulos, Alexandros"]
[WhiteFideId "12923044"]
[BlackFideId "4244125"]
[WhiteElo "2502"]
[BlackElo "2359"]
[Result "1/2-1/2"]
[Round "04"]
[TimeControl "180+2"]
[Date "2023.05.23"]
[WhiteClock "0:00:07"]
[BlackClock "0:00:12"]

1. d4 {[%clk 0:03:00]}  e6 {[%clk 0:02:59]} 2. Nf3 {[%clk 0:03:01]}  Nf6 {[%clk 0:02:57]} 3. Bg5 {[%clk 0:02:57]}  c5 {[%clk 0:02:57]} 4. e3 {[%clk 0:02:55]}  Qb6 {[%clk 0:02:57]} 5. Qc1 {[%clk 0:02:42]}  Ne4 {[%clk 0:02:55]} 6. Bf4 {[%clk 0:02:42]}  d5 {[%clk 0:02:55]} 7. c3 {[%clk 0:02:40]}  Bd7 {[%clk 0:02:53]} 8. Nbd2 {[%clk 0:02:40]}  Nxd2 {[%clk 0:02:39]} 9. Qxd2 {[%clk 0:02:37]}  Be7 {[%clk 0:02:34]} 10. a4 {[%clk 0:02:36]}  Nc6 {[%clk 0:02:30]} 11. dxc5 {[%clk 0:02:28]}  Bxc5 {[%clk 0:02:28]} 12. b4 {[%clk 0:02:25]}  Be7 {[%clk 0:02:28]} 13. a5 {[%clk 0:02:20]}  Qd8 {[%clk 0:02:27]} 14. Bd3 {[%clk 0:02:17]}  a6 {[%clk 0:02:23]} 15. O-O {[%clk 0:02:14]}  O-O {[%clk 0:02:19]} 16. e4 {[%clk 0:02:13]}  Rc8 {[%clk 0:02:04]} 17. Rad1 {[%clk 0:01:59]}  Na7 {[%clk 0:02:01]} 18. exd5 {[%clk 0:01:57]}  exd5 {[%clk 0:02:00]} 19. Nd4 {[%clk 0:01:57]}  Bf6 {[%clk 0:01:56]} 20. Bd6 {[%clk 0:01:29]}  Re8 {[%clk 0:01:41]} 21. Bc5 {[%clk 0:01:29]}  Nc6 {[%clk 0:01:41]} 22. Rfe1 {[%clk 0:01:20]}  Rxe1+ {[%clk 0:01:18]} 23. Rxe1 {[%clk 0:01:21]}  Nxa5 {[%clk 0:01:18]} 24. Qa2 {[%clk 0:01:04]}  Nc4 {[%clk 0:01:15]} 25. Ne2 {[%clk 0:00:53]}  Bb5 {[%clk 0:01:07]} 26. Bd4 {[%clk 0:00:50]}  h6 {[%clk 0:00:59]} 27. Bxf6 {[%clk 0:00:44]}  Qxf6 {[%clk 0:01:00]} 28. Nd4 {[%clk 0:00:45]}  Nd6 {[%clk 0:00:57]} 29. Bxb5 {[%clk 0:00:32]}  Nxb5 {[%clk 0:00:58]} 30. Qxd5 {[%clk 0:00:29]}  Rd8 {[%clk 0:00:35]} 31. Qxb7 {[%clk 0:00:27]}  Nxc3 {[%clk 0:00:25]} 32. Nc6 {[%clk 0:00:27]}  Rf8 {[%clk 0:00:14]} 33. Qxa6 {[%clk 0:00:24]}  Kh8 {[%clk 0:00:12]} 34. Qc4 {[%clk 0:00:23]}  Rc8 {[%clk 0:00:08]} 35. b5 {[%clk 0:00:10]}  Nxb5 {[%clk 0:00:07]} 36. Qxb5 {[%clk 0:00:11]}  Qxc6 {[%clk 0:00:07]} 37. Qd3 {[%clk 0:00:11]}  Re8 {[%clk 0:00:06]} 38. Rd1 {[%clk 0:00:11]}  Qe6 {[%clk 0:00:06]} 39. h4 {[%clk 0:00:10]}  Qe2 {[%clk 0:00:06]} 40. Qd4 {[%clk 0:00:10]}  Qe5 {[%clk 0:00:06]} 41. Qd2 {[%clk 0:00:09]}  Qe2 {[%clk 0:00:06]} 42. Qd7 {[%clk 0:00:10]}  Qe7 {[%clk 0:00:05]} 43. Qf5 {[%clk 0:00:10]}  Qe6 {[%clk 0:00:04]} 44. Qf4 {[%clk 0:00:10]}  Qe7 {[%clk 0:00:04]} 45. g3 {[%clk 0:00:10]}  Kg8 {[%clk 0:00:04]} 46. Kh2 {[%clk 0:00:10]}  Qe5 {[%clk 0:00:04]} 47. Qf3 {[%clk 0:00:10]}  Qe4 {[%clk 0:00:04]} 48. Qc3 {[%clk 0:00:10]}  Qe5 {[%clk 0:00:04]} 49. Rd4 {[%clk 0:00:11]}  Qe2 {[%clk 0:00:04]} 50. Rf4 {[%clk 0:00:11]}  Qe6 {[%clk 0:00:04]} 51. Qf3 {[%clk 0:00:10]}  Rf8 {[%clk 0:00:04]} 52. h5 {[%clk 0:00:11]}  Qe7 {[%clk 0:00:05]} 53. Rf5 {[%clk 0:00:11]}  Qe6 {[%clk 0:00:05]} 54. Qf4 {[%clk 0:00:12]}  Re8 {[%clk 0:00:05]} 55. Qf3 {[%clk 0:00:12]}  Qe7 {[%clk 0:00:05]} 56. Rf4 {[%clk 0:00:12]}  Qe6 {[%clk 0:00:06]} 57. Qd3 {[%clk 0:00:12]}  Rf8 {[%clk 0:00:06]} 58. Rf5 {[%clk 0:00:12]}  Qe7 {[%clk 0:00:06]} 59. Qd5 {[%clk 0:00:12]}  Rd8 {[%clk 0:00:05]} 60. Rxf7 {[%clk 0:00:10]}  Rxd5 {[%clk 0:00:06]} 61. Rxe7 {[%clk 0:00:10]}  Rxh5+ {[%clk 0:00:06]} 62. Kg2 {[%clk 0:00:11]}  Rf5 {[%clk 0:00:07]} 63. Re3 {[%clk 0:00:11]}  Rf7 {[%clk 0:00:07]} 64. g4 {[%clk 0:00:11]}  g6 {[%clk 0:00:08]} 65. Kg3 {[%clk 0:00:12]}  Kg7 {[%clk 0:00:08]} 66. f4 {[%clk 0:00:12]}  Rd7 {[%clk 0:00:09]} 67. Kf3 {[%clk 0:00:13]}  Rc7 {[%clk 0:00:09]} 68. Rb3 {[%clk 0:00:13]}  Rd7 {[%clk 0:00:09]} 69. Rc3 {[%clk 0:00:13]}  Rb7 {[%clk 0:00:09]} 70. Rc5 {[%clk 0:00:14]}  Re7 {[%clk 0:00:09]} 71. Rd5 {[%clk 0:00:13]}  Ra7 {[%clk 0:00:10]} 72. Ke4 {[%clk 0:00:14]}  Ra4+ {[%clk 0:00:10]} 73. Ke5 {[%clk 0:00:14]}  Ra7 {[%clk 0:00:10]} 74. Rd6 {[%clk 0:00:14]}  Kf7 {[%clk 0:00:08]} 75. Rf6+ {[%clk 0:00:14]}  Kg7 {[%clk 0:00:08]} 76. Rc6 {[%clk 0:00:14]}  Kf7 {[%clk 0:00:08]} 77. Rf6+ {[%clk 0:00:09]}  Kg7 {[%clk 0:00:08]} 78. Rd6 {[%clk 0:00:09]}  Kf7 {[%clk 0:00:08]} 79. Rd5 {[%clk 0:00:07]}  Re7+ {[%clk 0:00:08]} 80. Kd4 {[%clk 0:00:07]}  Re1 {[%clk 0:00:08]} 81. Rd7+ {[%clk 0:00:07]}  Kf6 {[%clk 0:00:09]} 82. Rd6+ {[%clk 0:00:07]}  Kf7 {[%clk 0:00:09]} 83. Ra6 {[%clk 0:00:06]}  h5 {[%clk 0:00:09]} 84. gxh5 {[%clk 0:00:05]}  gxh5 {[%clk 0:00:10]} 85. Rh6 {[%clk 0:00:05]}  Kg7 {[%clk 0:00:09]} 86. Rxh5 {[%clk 0:00:05]}  Kf6 {[%clk 0:00:09]} 87. Ra5 {[%clk 0:00:04]}  Re2 {[%clk 0:00:09]} 88. Kd3 {[%clk 0:00:04]}  Re1 {[%clk 0:00:10]} 89. Rb5 {[%clk 0:00:05]}  Re8 {[%clk 0:00:10]} 90. Rd5 {[%clk 0:00:04]}  Re1 {[%clk 0:00:10]} 91. Kd4 {[%clk 0:00:05]}  Rd1+ {[%clk 0:00:10]} 92. Ke4 {[%clk 0:00:05]}  Rxd5 {[%clk 0:00:11]} 93. Kxd5 {[%clk 0:00:06]}  Kf5 {[%clk 0:00:11]} 94. Kd4 {[%clk 0:00:07]}  Kxf4 {[%clk 0:00:12]} 1/2-1/2


[Site "https://www.chess.com"]

[Event "Titled Tuesday Blitz May 23 Late 2023"]
[White "Durarbayli, Vasif"]
[Black "Zwirs, Nico"]
[WhiteFideId "13402935"]
[BlackFideId "1036432"]
[WhiteElo "2551"]
[BlackElo "2381"]
[Result "0-1"]
[Round "04"]
[TimeControl "180+2"]
[Date "2023.05.23"]
[WhiteClock "0:00:00"]
[BlackClock "0:00:10"]

1. e4 {[%clk 0:03:00]}  c5 {[%clk 0:02:59]} 2. Nf3 {[%clk 0:02:58]}  d6 {[%clk 0:03:00]} 3. d4 {[%clk 0:02:58]}  cxd4 {[%clk 0:03:01]} 4. Nxd4 {[%clk 0:02:59]}  Nf6 {[%clk 0:03:01]} 5. Nc3 {[%clk 0:02:59]}  Bd7 {[%clk 0:03:02]} 6. Nb3 {[%clk 0:02:52]}  g6 {[%clk 0:03:01]} 7. Be2 {[%clk 0:02:47]}  Bg7 {[%clk 0:03:01]} 8. g4 {[%clk 0:02:47]}  Bc6 {[%clk 0:02:55]} 9. f3 {[%clk 0:02:46]}  h5 {[%clk 0:02:54]} 10. g5 {[%clk 0:02:44]}  Nfd7 {[%clk 0:02:54]} 11. Be3 {[%clk 0:02:43]}  O-O {[%clk 0:02:51]} 12. Qd2 {[%clk 0:02:42]}  a5 {[%clk 0:02:51]} 13. a3 {[%clk 0:02:38]}  Na6 {[%clk 0:02:49]} 14. Bd4 {[%clk 0:02:23]}  Bxd4 {[%clk 0:02:44]} 15. Nxd4 {[%clk 0:02:23]}  Nac5 {[%clk 0:02:38]} 16. O-O-O {[%clk 0:02:16]}  Rc8 {[%clk 0:02:31]} 17. Bc4 {[%clk 0:01:50]}  Qb6 {[%clk 0:02:16]} 18. Ba2 {[%clk 0:01:45]}  Ne5 {[%clk 0:01:54]} 19. Rhe1 {[%clk 0:01:39]}  Na4 {[%clk 0:01:44]} 20. Nxa4 {[%clk 0:01:26]}  Bxa4 {[%clk 0:01:45]} 21. Re3 {[%clk 0:01:00]}  Rc7 {[%clk 0:01:37]} 22. Rc3 {[%clk 0:00:48]}  Rfc8 {[%clk 0:01:35]} 23. Rxc7 {[%clk 0:00:44]}  Rxc7 {[%clk 0:01:36]} 24. Qe2 {[%clk 0:00:42]}  Nc6 {[%clk 0:01:19]} 25. Bxf7+ {[%clk 0:00:25]}  Kh7 {[%clk 0:00:59]} 26. Ne6 {[%clk 0:00:19]}  Rc8 {[%clk 0:00:51]} 27. Bxg6+ {[%clk 0:00:14]}  Kxg6 {[%clk 0:00:49]} 28. Nf4+ {[%clk 0:00:15]}  Kh7 {[%clk 0:00:46]} 29. Qc4 {[%clk 0:00:14]}  Qe3+ {[%clk 0:00:41]} 30. Kb1 {[%clk 0:00:08]}  Bxc2+ {[%clk 0:00:38]} 31. Qxc2 {[%clk 0:00:07]}  Qxf4 {[%clk 0:00:38]} 32. e5+ {[%clk 0:00:08]}  Kg7 {[%clk 0:00:34]} 33. exd6 {[%clk 0:00:08]}  exd6 {[%clk 0:00:35]} 34. h4 {[%clk 0:00:06]}  Qe5 {[%clk 0:00:18]} 35. Rd2 {[%clk 0:00:04]}  Ne7 {[%clk 0:00:17]} 36. Qd3 {[%clk 0:00:05]}  Nf5 {[%clk 0:00:16]} 37. Re2 {[%clk 0:00:04]}  Qc5 {[%clk 0:00:12]} 38. Re1 {[%clk 0:00:04]}  Rc7 {[%clk 0:00:10]} 39. Qe4 {[%clk 0:00:03]}  Re7 {[%clk 0:00:09]} 40. Qxe7+ {[%clk 0:00:02]}  Nxe7 {[%clk 0:00:10]} 41. Rxe7+ {[%clk 0:00:03]}  Kf8 {[%clk 0:00:11]} 42. Re6 {[%clk 0:00:02]}  Qc4 {[%clk 0:00:10]} 43. Rf6+ {[%clk 0:00:02]}  Ke7 {[%clk 0:00:10]} 44. f4 {[%clk 0:00:03]}  Qd3+ {[%clk 0:00:09]} 45. Ka2 {[%clk 0:00:03]}  Qf1 {[%clk 0:00:09]} 46. f5 {[%clk 0:00:03]}  Qc4+ {[%clk 0:00:09]} 47. Kb1 {[%clk 0:00:03]}  Qxh4 {[%clk 0:00:09]} 48. Re6+ {[%clk 0:00:03]}  Kf7 {[%clk 0:00:09]} 49. Rf6+ {[%clk 0:00:03]}  Ke7 {[%clk 0:00:09]} 50. Re6+ {[%clk 0:00:03]}  Kd7 {[%clk 0:00:09]} 51. g6 {[%clk 0:00:04]}  Qh1+ {[%clk 0:00:09]} 52. Ka2 {[%clk 0:00:03]}  Qd5+ {[%clk 0:00:10]} 53. Ka1 {[%clk 0:00:04]}  Qxf5 {[%clk 0:00:10]} 54. g7 {[%clk 0:00:00]}  Qxe6 {[%clk 0:00:10]} 0-1


[Site "https://www.chess.com"]

[Event "Titled Tuesday Blitz May 23 Late 2023"]
[White "Keymer, Vincent"]
[Black "Schnaider, Ilan"]
[WhiteFideId "12940690"]
[BlackFideId "169013"]
[WhiteElo "2669"]
[BlackElo "2224"]
[Result "1-0"]
[Round "04"]
[TimeControl "180+2"]
[Date "2023.05.23"]
[WhiteClock "0:00:07"]
[BlackClock "0:00:05"]

1. a3 {[%clk 0:03:00]}  Nf6 {[%clk 0:02:58]} 2. Nf3 {[%clk 0:02:58]}  g6 {[%clk 0:02:57]} 3. b4 {[%clk 0:02:58]}  Bg7 {[%clk 0:02:57]} 4. Bb2 {[%clk 0:02:58]}  O-O {[%clk 0:02:57]} 5. c4 {[%clk 0:02:55]}  c6 {[%clk 0:02:55]} 6. e3 {[%clk 0:02:48]}  d5 {[%clk 0:02:55]} 7. h3 {[%clk 0:02:47]}  Re8 {[%clk 0:02:54]} 8. Be2 {[%clk 0:02:45]}  Nbd7 {[%clk 0:02:53]} 9. d4 {[%clk 0:02:44]}  dxc4 {[%clk 0:02:52]} 10. Bxc4 {[%clk 0:02:42]}  Nb6 {[%clk 0:02:52]} 11. Bb3 {[%clk 0:02:39]}  a5 {[%clk 0:02:44]} 12. bxa5 {[%clk 0:02:28]}  Nbd5 {[%clk 0:02:34]} 13. O-O {[%clk 0:02:27]}  Qxa5 {[%clk 0:02:31]} 14. Nbd2 {[%clk 0:02:04]}  Bf5 {[%clk 0:02:20]} 15. Ne5 {[%clk 0:01:59]}  Be6 {[%clk 0:01:19]} 16. Ndc4 {[%clk 0:01:29]}  Qc7 {[%clk 0:01:17]} 17. Qf3 {[%clk 0:01:14]}  Nb6 {[%clk 0:00:41]} 18. Nxb6 {[%clk 0:01:09]}  Qxb6 {[%clk 0:00:39]} 19. Bxe6 {[%clk 0:01:09]}  fxe6 {[%clk 0:00:40]} 20. Rab1 {[%clk 0:01:09]}  Qb5 {[%clk 0:00:36]} 21. Rfe1 {[%clk 0:00:50]}  Rf8 {[%clk 0:00:31]} 22. Bc3 {[%clk 0:00:44]}  Qa6 {[%clk 0:00:28]} 23. Bb4 {[%clk 0:00:41]}  Nd5 {[%clk 0:00:28]} 24. Qg4 {[%clk 0:00:39]}  Rf6 {[%clk 0:00:13]} 25. Nd7 {[%clk 0:00:39]}  Rf5 {[%clk 0:00:10]} 26. e4 {[%clk 0:00:37]}  Nf6 {[%clk 0:00:10]} 27. Nxf6+ {[%clk 0:00:37]}  Rxf6 {[%clk 0:00:10]} 28. Bxe7 {[%clk 0:00:37]}  Rf7 {[%clk 0:00:09]} 29. Bc5 {[%clk 0:00:36]}  Re8 {[%clk 0:00:06]} 30. e5 {[%clk 0:00:27]}  Qd3 {[%clk 0:00:06]} 31. Qe2 {[%clk 0:00:23]}  Qf5 {[%clk 0:00:05]} 32. Rb3 {[%clk 0:00:22]}  Bf8 {[%clk 0:00:04]} 33. Rf3 {[%clk 0:00:22]}  Qg5 {[%clk 0:00:04]} 34. Rxf7 {[%clk 0:00:21]}  Kxf7 {[%clk 0:00:05]} 35. Bxf8 {[%clk 0:00:18]}  Kxf8 {[%clk 0:00:04]} 36. Rb1 {[%clk 0:00:18]}  Re7 {[%clk 0:00:04]} 37. Qd3 {[%clk 0:00:07]}  Rf7 {[%clk 0:00:03]} 38. g3 {[%clk 0:00:07]}  Kg7 {[%clk 0:00:03]} 39. Kg2 {[%clk 0:00:07]}  h5 {[%clk 0:00:03]} 40. h4 {[%clk 0:00:07]}  Qg4 {[%clk 0:00:04]} 41. f3 {[%clk 0:00:06]}  Qf5 {[%clk 0:00:03]} 42. Qxf5 {[%clk 0:00:06]}  gxf5 {[%clk 0:00:04]} 43. Kf2 {[%clk 0:00:06]}  Rd7 {[%clk 0:00:03]} 44. Ke3 {[%clk 0:00:06]}  Kf7 {[%clk 0:00:03]} 45. a4 {[%clk 0:00:06]}  Ke7 {[%clk 0:00:03]} 46. Rb4 {[%clk 0:00:03]}  Kd8 {[%clk 0:00:02]} 47. Kf4 {[%clk 0:00:03]}  Kc8 {[%clk 0:00:02]} 48. g4 {[%clk 0:00:02]}  hxg4 {[%clk 0:00:02]} 49. fxg4 {[%clk 0:00:03]}  Rh7 {[%clk 0:00:02]} 50. h5 {[%clk 0:00:03]}  fxg4 {[%clk 0:00:02]} 51. Kxg4 {[%clk 0:00:04]}  Rg7+ {[%clk 0:00:03]} 52. Kf4 {[%clk 0:00:05]}  Kc7 {[%clk 0:00:02]} 53. Rb2 {[%clk 0:00:03]}  Rf7+ {[%clk 0:00:01]} 54. Kg5 {[%clk 0:00:03]}  Rf5+ {[%clk 0:00:02]} 55. Kg6 {[%clk 0:00:04]}  Rf1 {[%clk 0:00:03]} 56. Rh2 {[%clk 0:00:04]}  Rg1+ {[%clk 0:00:03]} 57. Kf6 {[%clk 0:00:04]}  Kd7 {[%clk 0:00:03]} 58. h6 {[%clk 0:00:05]}  Rf1+ {[%clk 0:00:04]} 59. Kg6 {[%clk 0:00:04]}  Rg1+ {[%clk 0:00:04]} 60. Kh5 {[%clk 0:00:05]}  Rg8 {[%clk 0:00:04]} 61. h7 {[%clk 0:00:05]}  Ra8 {[%clk 0:00:04]} 62. Kg6 {[%clk 0:00:06]}  c5 {[%clk 0:00:04]} 63. dxc5 {[%clk 0:00:06]}  Kc6 {[%clk 0:00:05]} 64. h8=Q {[%clk 0:00:06]}  Rxh8 {[%clk 0:00:04]} 65. Rxh8 {[%clk 0:00:07]}  Kxc5 {[%clk 0:00:05]} 66. Kf6 {[%clk 0:00:07]}  Kd5 {[%clk 0:00:05]} 67. Rb8 {[%clk 0:00:07]} 1-0


[Site "https://www.chess.com"]

[Event "Titled Tuesday Blitz May 23 Late 2023"]
[White "ATM622"]
[Black "Rustemov, Alexander"]
[BlackFideId "4119002"]
[WhiteElo "2572"]
[BlackElo "2859"]
[Result "0-1"]
[Round "04"]
[TimeControl "180+2"]
[Date "2023.05.23"]
[WhiteClock "0:00:51"]
[BlackClock "0:01:28"]

1. d4 {[%clk 0:03:00]}  d5 {[%clk 0:02:59]} 2. c4 {[%clk 0:03:01]}  c6 {[%clk 0:02:59]} 3. Nf3 {[%clk 0:03:01]}  Nf6 {[%clk 0:03:00]} 4. Nbd2 {[%clk 0:03:01]}  Bf5 {[%clk 0:02:58]} 5. Nh4 {[%clk 0:03:01]}  Be4 {[%clk 0:02:53]} 6. e3 {[%clk 0:02:58]}  e6 {[%clk 0:02:52]} 7. Be2 {[%clk 0:02:57]}  Nbd7 {[%clk 0:02:48]} 8. O-O {[%clk 0:02:55]}  Bd6 {[%clk 0:02:44]} 9. Nhf3 {[%clk 0:02:43]}  h6 {[%clk 0:02:41]} 10. b3 {[%clk 0:02:42]}  O-O {[%clk 0:02:39]} 11. Bb2 {[%clk 0:02:41]}  Qe7 {[%clk 0:02:39]} 12. Ne5 {[%clk 0:02:37]}  Bh7 {[%clk 0:02:35]} 13. f4 {[%clk 0:02:33]}  Ne4 {[%clk 0:02:31]} 14. Nxe4 {[%clk 0:02:25]}  Bxe4 {[%clk 0:02:32]} 15. Bd3 {[%clk 0:02:24]}  Nf6 {[%clk 0:02:26]} 16. Qe2 {[%clk 0:02:19]}  Bxd3 {[%clk 0:02:21]} 17. Qxd3 {[%clk 0:02:10]}  Bxe5 {[%clk 0:02:17]} 18. fxe5 {[%clk 0:02:07]}  Ne4 {[%clk 0:02:17]} 19. Rf4 {[%clk 0:02:01]}  f6 {[%clk 0:02:16]} 20. exf6 {[%clk 0:01:57]}  Rxf6 {[%clk 0:02:17]} 21. Raf1 {[%clk 0:01:56]}  Raf8 {[%clk 0:02:16]} 22. cxd5 {[%clk 0:01:52]}  exd5 {[%clk 0:02:15]} 23. Rxf6 {[%clk 0:01:51]}  Rxf6 {[%clk 0:02:15]} 24. Rxf6 {[%clk 0:01:50]}  Qxf6 {[%clk 0:02:15]} 25. Qf1 {[%clk 0:01:50]}  Qxf1+ {[%clk 0:02:10]} 26. Kxf1 {[%clk 0:01:51]}  Kf7 {[%clk 0:02:10]} 27. Ke2 {[%clk 0:01:48]}  Ke6 {[%clk 0:02:10]} 28. Kf3 {[%clk 0:01:43]}  h5 {[%clk 0:02:07]} 29. h4 {[%clk 0:01:41]}  Kf5 {[%clk 0:02:06]} 30. g3 {[%clk 0:01:37]}  g5 {[%clk 0:01:57]} 31. Ba1 {[%clk 0:01:33]}  g4+ {[%clk 0:01:52]} 32. Kg2 {[%clk 0:01:32]}  b5 {[%clk 0:01:44]} 33. Bb2 {[%clk 0:01:25]}  b4 {[%clk 0:01:38]} 34. Bc1 {[%clk 0:01:04]}  Nc3 {[%clk 0:01:32]} 35. a3 {[%clk 0:01:01]}  a5 {[%clk 0:01:27]} 36. axb4 {[%clk 0:00:59]}  axb4 {[%clk 0:01:27]} 37. Kf2 {[%clk 0:00:56]}  Ke4 {[%clk 0:01:28]} 38. Bd2 {[%clk 0:00:55]}  Kd3 {[%clk 0:01:28]} 39. Be1 {[%clk 0:00:51]}  Kc2 {[%clk 0:01:28]} 0-1


[Site "https://www.chess.com"]